fUSD/lending_fUSD_20240625
["ID","MTS","AMOUNT","RATE_DAILY","PERIOD"]
[330367075,1719336647118,-1862.16,0.00019178,2]
[330367077,1719336647128,-1045.46,0.00019178,2]
[330367079,1719336647138,-500.0,0.00019178,2]
[330367081,1719336647148,-500.0,0.00019178,2]
[330367083,1719336647159,-500.0,0.00019178,2]
[330367085,1719336647168,-500.0,0.00019178,2]
[330367087,1719336647179,-500.0,0.00019178,2]
[330367089,1719336647188,-500.0,0.00019178,2]
[330367091,1719336647198,-500.0,0.00019178,2]
[330367093,1719336647208,-500.0,0.00019178,2]
[330367095,1719336647218,-500.0,0.00019178,2]
[330367097,1719336647228,-500.0,0.00019178,2]
[330367099,1719336647238,-611.27,0.00019178,2]
[330367101,1719336647248,-500.0,0.00019178,2]
[330367103,1719336647258,-6303.31,0.00019178,2]
[330367105,1719336647268,-500.0,0.00019178,2]
[330367108,1719336647278,-1560.57,0.00019178,2]
[330367110,1719336647287,-500.0,0.00019178,2]
[330367112,1719336647299,-500.0,0.00019178,2]
[330367114,1719336647308,-500.0,0.00019178,2]
[330367116,1719336647319,-2836.43,0.00019178,2]
[330367118,1719336647330,-500.0,0.00019178,2]
[330367119,1719336647340,-500.0,0.00019178,2]
[330367120,1719336647349,-500.0,0.00019178,2]
[330367121,1719336647359,-500.0,0.00019178,2]
[330367122,1719336647369,-500.0,0.00019178,2]
[330367123,1719336647379,-1007.94,0.00019178,2]
[330367124,1719336647388,-500.0,0.00019178,2]
[330367125,1719336647398,-1837.86,0.00019178,2]
[330367126,1719336647409,-656.72,0.00019178,2]
[330367127,1719336647418,-500.0,0.00019178,2]
[330367128,1719336647428,-561.24,0.00019178,2]
[330367129,1719336647437,-604.2,0.00019178,2]
[330367130,1719336647446,-737.53,0.00019178,2]
[330367131,1719336647456,-500.0,0.00019178,2]
[330367132,1719336647466,-1935.29,0.00019178,2]
[330367134,1719336647475,-500.0,0.00019178,2]
[330367136,1719336647484,-500.0,0.00019178,2]
[330367138,1719336647494,-500.0,0.00019178,2]
[330367140,1719336647504,-1281.36,0.00019178,2]
[330367142,1719336647513,-500.0,0.00019178,2]
[330367144,1719336647523,-500.0,0.00019178,2]
[330367146,1719336647533,-500.0,0.00019178,2]
[330367148,1719336647542,-500.0,0.00019178,2]
[330367150,1719336647552,-500.0,0.00019178,2]
[330367152,1719336647562,-500.0,0.00019178,2]
[330367154,1719336647571,-500.0,0.00019178,2]
[330367156,1719336647580,-4793.59,0.00019178,2]
[330367158,1719336647590,-4340.85,0.00019178,2]
[330367160,1719336647600,-1379.82,0.00019178,2]
[330367162,1719336647609,-500.0,0.00019178,2]
[330367164,1719336647619,-748.4,0.00019178,2]
[330367166,1719336647628,-4562.27,0.00019178,2]
[330367169,1719336647638,-500.0,0.00019178,2]
[330367171,1719336647648,-500.46,0.00019178,2]
[330367173,1719336647659,-500.0,0.00019178,2]
[330367175,1719336647668,-500.0,0.00019178,2]
[330367177,1719336647678,-500.0,0.00019178,2]
[330367179,1719336647688,-500.0,0.00019178,2]
[330367180,1719336647698,-500.0,0.00019178,2]
[330367183,1719336647712,-979.75,0.00019178,2]
[330367185,1719336647722,-500.0,0.00019178,2]
[330367187,1719336647732,-885.2,0.00019178,2]
[330367188,1719336647742,-500.0,0.00019178,2]
[330367190,1719336647754,-500.0,0.00019178,2]
[330367192,1719336647764,-1672.49,0.00019178,2]
[330367194,1719336647773,-1896.32,0.00019178,2]
[330367197,1719336647783,-1177.21,0.00019178,2]
[330367198,1719336647795,-1106.45,0.00019178,2]
[330367200,1719336647806,-3726.14,0.00019178,2]
[330367202,1719336647815,-500.0,0.00019178,2]
[330367204,1719336647825,-340.89561838,0.00019178,2]
[330367206,1719336647834,-500.0,0.00019178,2]
[330367209,1719336647844,-500.0,0.00019178,2]
[330367211,1719336647854,-770.1,0.00019178,2]
[330367213,1719336647864,-696.42,0.00019178,2]
[330367215,1719336647874,-1000.0,0.00019178,2]
[330367217,1719336647884,-1492.31,0.00019178,2]
[330367219,1719336647894,-500.0,0.00019178,2]
[330367221,1719336647905,-500.0,0.00019178,2]
[330367223,1719336647916,-2218.5,0.00019178,2]
[330367225,1719336647927,-3954.61,0.00019178,2]
[330367227,1719336647937,-517.38,0.00019178,2]
[330367229,1719336647946,-2748.29,0.00019178,2]
[330367231,1719336647956,-500.0,0.00019178,2]
[330367233,1719336647966,-944.39,0.00019178,2]
[330367235,1719336647975,-2154.88,0.00019178,2]
[330367237,1719336647984,-500.0,0.00019178,2]
[330367239,1719336647994,-1988.78,0.00019178,2]
[330367241,1719336648004,-1779.43,0.00019178,2]
[330367243,1719336648015,-852.52,0.00019178,2]
[330367245,1719336648024,-500.0,0.00019178,2]
[330367247,1719336648034,-500.0,0.00019178,2]
[330367249,1719336648045,-1154.36,0.00019178,2]
[330367250,1719336648054,-1035.08,0.00019178,2]
[330367251,1719336648064,-500.0,0.00019178,2]
[330367252,1719336648074,-193.95376184,0.00019178,2]
[330367253,1719336648083,-1318.63,0.00019178,2]
[330367254,1719336648093,-1933.63,0.00019178,2]
[330367255,1719336648102,-500.0,0.00019178,2]
[330367256,1719336648112,-1251.32,0.00019178,2]
[330367257,1719336648121,-500.0,0.00019178,2]
[330367258,1719336648130,-970.97,0.00019178,2]
[330367259,1719336648139,-500.0,0.00019178,2]
[330367260,1719336648150,-500.0,0.00019178,2]
[330367261,1719336648159,-1830.6,0.00019178,2]
[330367262,1719336648170,-1247.37,0.00019178,2]
[330367263,1719336648180,-1639.19,0.00019178,2]
[330367264,1719336648190,-1158.35,0.00019178,2]
[330367265,1719336648200,-667.47,0.00019178,2]
[330367266,1719336648210,-500.0,0.00019178,2]
[330367267,1719336648219,-524.52,0.00019178,2]
[330367268,1719336648228,-500.0,0.00019178,2]
[330367269,1719336648238,-988.88,0.00019178,2]
[330367270,1719336648248,-4263.88,0.00019178,2]
[330367271,1719336648258,-500.0,0.00019178,2]
[330367272,1719336648267,-500.0,0.00019178,2]
[330367273,1719336648278,-1116.38,0.00019178,2]
[330367274,1719336648287,-613.52,0.00019178,2]
[330367275,1719336648296,-500.0,0.00019178,2]
[330367276,1719336648306,-9767.43,0.00019178,2]
[330367277,1719336648315,-500.0,0.00019178,2]
[330367278,1719336648324,-500.0,0.00019178,2]
[330367279,1719336648334,-3746.8,0.00019178,2]
[330367280,1719336648344,-500.0,0.00019178,2]
[330367281,1719336648353,-500.0,0.00019178,2]
[330367282,1719336648362,-938.75,0.00019178,2]
[330367283,1719336648371,-500.0,0.00019178,2]
[330367284,1719336648381,-500.0,0.00019178,2]
[330367285,1719336648390,-1172.72,0.00019178,2]
[330367286,1719336648400,-500.0,0.00019178,2]
[330367287,1719336648410,-2811.67,0.00019178,2]
[330367288,1719336648420,-500.0,0.00019178,2]
[330367289,1719336648430,-3172.45,0.00019178,2]
[330367290,1719336648439,-526.38,0.00019178,2]
[330367291,1719336648448,-1239.10230087,0.00019178,2]
[330367292,1719336648501,-257.0,0.00019178,2]
[330367293,1719336648523,-400.87769913,0.00019178,2]
[330367294,1719336648532,-3372.65,0.00019178,2]
[330367295,1719336648542,-500.0,0.00019178,2]
[330367296,1719336648552,-1837.0,0.00019178,2]
[330367297,1719336648561,-500.0,0.00019178,2]
[330367298,1719336648571,-500.0,0.00019178,2]
[330367299,1719336648581,-415.10869044,0.00019178,2]
[330367300,1719336648590,-500.0,0.00019178,2]
[330367301,1719336648600,-500.0,0.00019178,2]
[330367302,1719336648609,-3521.94,0.00019178,2]
[330367303,1719336648619,-500.0,0.00019178,2]
[330367304,1719336648628,-2306.18,0.00019178,2]
[330367305,1719336648638,-313.47726285,0.00019178,2]
[330367306,1719336648647,-500.0,0.00019178,2]
[330367307,1719336648657,-500.0,0.00019178,2]
[330367308,1719336648666,-500.0,0.00019178,2]
[330367309,1719336648676,-500.0,0.00019178,2]
[330367310,1719336648686,-1215.85,0.00019178,2]
[330367311,1719336648696,-797.26,0.00019178,2]
[330367312,1719336648707,-3720.5,0.00019178,2]
[330367313,1719336648721,-3384.6,0.00019178,2]
[330367314,1719336648731,-500.0,0.00019178,2]
[330367315,1719336648741,-500.0,0.00019178,2]
[330367316,1719336648751,-500.0,0.00019178,2]
[330367317,1719336648762,-1150.54,0.00019178,2]
[330367318,1719336648772,-500.0,0.00019178,2]
[330367319,1719336648782,-500.0,0.00019178,2]
[330367320,1719336648796,-1133.4,0.00019178,2]
[330367321,1719336648807,-500.0,0.00019178,2]
[330367322,1719336648817,-631.88,0.00019178,2]
[330367323,1719336648827,-674.93,0.00019178,2]
[330367324,1719336648836,-500.0,0.00019178,2]
[330367325,1719336648846,-3138.87,0.00019178,2]
[330367326,1719336648856,-2992.52,0.00019178,2]
[330367327,1719336648865,-500.0,0.00019178,2]
[330367328,1719336648875,-1550.12,0.00019178,2]
[330367329,1719336648885,-500.0,0.00019178,2]
[330367330,1719336648895,-500.0,0.00019178,2]
[330367331,1719336648904,-500.0,0.00019178,2]
[330367332,1719336648919,-542.36,0.00019178,2]
[330367333,1719336648932,-500.0,0.00019178,2]
[330367334,1719336648942,-552.44,0.00019178,2]
[330367335,1719336648951,-1877.93,0.00019178,2]
[330367336,1719336648962,-10530.43,0.00019178,2]
[330367337,1719336648972,-500.0,0.00019178,2]
[330367338,1719336648981,-1023.67,0.00019178,2]
[330367339,1719336648991,-500.0,0.00019178,2]
[330367340,1719336649000,-1178.05,0.00019178,2]
[330367341,1719336649010,-7501.0,0.00019178,2]
[330367342,1719336649019,-2493.9,0.00019178,2]
[330367343,1719336649030,-500.0,0.00019178,2]
[330367344,1719336649039,-538.49,0.00019178,2]
[330367345,1719336649049,-500.0,0.00019178,2]
[330367346,1719336649059,-500.0,0.00019178,2]
[330367347,1719336649069,-1690.38,0.00019178,2]
[330367348,1719336649079,-500.0,0.00019178,2]
[330367349,1719336649089,-294.12854701,0.00019178,2]
[330367350,1719336649099,-500.0,0.00019178,2]
[330367351,1719336649110,-569.63,0.00019178,2]
[330367352,1719336649119,-500.0,0.00019178,2]
[330367353,1719336649129,-1251.47,0.00019178,2]
[330367354,1719336649139,-500.0,0.00019178,2]
[330367355,1719336649149,-1633.98,0.00019178,2]
[330367356,1719336649161,-1807.9,0.00019178,2]
[330367357,1719336649171,-500.0,0.00019178,2]
[330367358,1719336649180,-2729.21,0.00019178,2]
[330367359,1719336649189,-1797.45,0.00019178,2]
[330367360,1719336649198,-1492.53,0.00019178,2]
[330367361,1719336649208,-4805.13,0.00019178,2]
[330367362,1719336649218,-500.0,0.00019178,2]
[330367363,1719336649228,-500.0,0.00019178,2]
[330367364,1719336649237,-841.57,0.00019178,2]
[330367365,1719336649247,-1809.47,0.00019178,2]
[330367366,1719336649257,-500.0,0.00019178,2]
[330367367,1719336649266,-500.0,0.00019178,2]
[330367368,1719336649276,-500.0,0.00019178,2]
[330367369,1719336649286,-500.0,0.00019178,2]
[330367370,1719336649296,-500.0,0.00019178,2]
[330367371,1719336649306,-7768.59,0.00019178,2]
[330367372,1719336649316,-1554.71,0.00019178,2]
[330367373,1719336649328,-512.53,0.00019178,2]
[330367374,1719336649337,-1333.1,0.00019178,2]
[330367375,1719336649347,-585.76,0.00019178,2]
[330367376,1719336649356,-937.82,0.00019178,2]
[330367377,1719336649366,-500.0,0.00019178,2]
[330367378,1719336649376,-4023.83,0.00019178,2]
[330367379,1719336649386,-2953.41,0.00019178,2]
[330367380,1719336649395,-4945.49,0.00019178,2]
[330367381,1719336649405,-627.16251809,0.00019178,2]
[330367382,1719336649419,-500.0,0.00019178,2]
[330367383,1719336649429,-3547.06,0.00019178,2]
[330367384,1719336649439,-500.0,0.00019178,2]
[330367385,1719336649449,-1266.4,0.00019178,2]
[330367386,1719336649459,-500.0,0.00019178,2]
[330367387,1719336649468,-872.86,0.00019178,2]
[330367388,1719336649478,-500.0,0.00019178,2]
[330367389,1719336649487,-1261.96,0.00019178,2]
[330367390,1719336649497,-500.0,0.00019178,2]
[330367391,1719336649507,-1536.46,0.00019178,2]
[330367392,1719336649517,-500.0,0.00019178,2]
[330367393,1719336649527,-498.23604732,0.00019178,2]
[330367394,1719336650484,-1.76395268,0.00019178,2]
[330367395,1719336650494,-500.79679064,0.00019178,2]
[330367396,1719336650506,-612.24612979,0.00019178,2]
[330367397,1719336650517,-781.93320104,0.00019178,2]
[330367398,1719336650529,-7875.09387853,0.00019178,2]
[330367399,1719336650538,-500.0,0.00019178,2]
[330367400,1719336650547,-3164.49,0.00019178,2]
[330367401,1719336650557,-4482.09154627,0.00019178,2]
[330367402,1719336650665,-466.51281727,0.00019178,2]
[330367403,1719336650677,-410.73563646,0.00019178,2]
[330367404,1719336650686,-1183.70789604,0.00019178,2]
[330367405,1719336650698,-289.17210396,0.00019178,2]
[330367406,1719336650712,-500.0,0.00019178,2]
[330367407,1719336650721,-1539.05,0.00019178,2]
[330367408,1719336650730,-126.72063521,0.00019178,2]
[330367409,1719336650740,-373.27936479,0.00019178,2]
[330367410,1719336650750,-979.46391742,0.00019178,2]
[330367411,1719336650762,-1597.50608258,0.00019178,2]
[330367412,1719336650771,-586.67,0.00019178,2]
[330367413,1719336650783,-500.0,0.00019178,2]
[330367414,1719336650793,-500.0,0.00019178,2]
[330367415,1719336650802,-500.0,0.00019178,2]
[330367416,1719336650812,-5919.45,0.00019178,2]
[330367417,1719336650823,-500.0,0.00019178,2]
[330367418,1719336650834,-1875.05,0.00019178,2]
[330367419,1719336650843,-1025.98,0.00019178,2]
[330367420,1719336650852,-2710.65,0.00019178,2]
[330367421,1719336650861,-520.46,0.00019178,2]
[330367422,1719336650870,-500.0,0.00019178,2]
[330367423,1719336650880,-764.06,0.00019178,2]
[330367424,1719336650889,-500.0,0.00019178,2]
[330367425,1719336650898,-500.0,0.00019178,2]
[330367426,1719336650910,-500.0,0.00019178,2]
[330367427,1719336650919,-690.86,0.00019178,2]
[330367428,1719336650930,-258.23285475,0.00019178,2]
[330367429,1719336652027,-241.76714525,0.00019178,2]
[330367430,1719336652037,-575.1,0.00019178,2]
[330367431,1719336652046,-114.26564434,0.00019178,2]
[330367432,1719336652058,-3037.83435566,0.00019178,2]
[330367433,1719336652313,-228.87871334,0.00019178,2]
[330367434,1719336652330,-271.12128666,0.00019178,2]
[330367435,1719336652339,-4317.05,0.00019178,2]
[330367436,1719336652349,-6898.63,0.00019178,2]
[330367437,1719336652359,-2634.77,0.00019178,2]
[330367438,1719336652368,-511.42787635,0.00019178,2]
[330367439,1719336652377,-500.0,0.00019178,2]
[330367440,1719336652386,-360.91660528,0.00019178,2]
[330367441,1719336652395,-500.0,0.00019178,2]
[330367442,1719336652404,-147.56498788,0.00019178,2]
[330367443,1719336652418,-352.43501212,0.00019178,2]
[330367444,1719336652427,-396.19729361,0.00019178,2]
[330367445,1719336652438,-103.80270639,0.00019178,2]
[330367446,1719336652447,-500.0,0.00019178,2]
[330367447,1719336652457,-734.69,0.00019178,2]
[330367448,1719336652466,-815.0,0.00019178,2]
[330367449,1719336652475,-221.3828942,0.00019178,2]
[330367450,1719336652487,-278.6171058,0.00019178,2]
[330367451,1719336652496,-63.04048433,0.00019178,2]
[330367452,1719336652508,-699.84660329,0.00019178,2]
[330367453,1719336652519,-656.8979232,0.00019178,2]
[330367454,1719336652556,-715.36994382,0.00019178,2]
[330367455,1719336652568,-86.23504536,0.00019178,2]
[330367456,1719336652577,-500.0,0.00019178,2]
[330367457,1719336652587,-64.12772469,0.00019178,2]
[330367458,1719336652599,-1129.15227531,0.00019178,2]
[330367459,1719336652608,-500.0,0.00019178,2]
[330367460,1719336652617,-500.0,0.00019178,2]
[330367461,1719336652627,-919.57,0.00019178,2]
[330367462,1719336652636,-500.0,0.00019178,2]
[330367463,1719336652646,-1344.42,0.00019178,2]
[330367464,1719336652655,-500.0,0.00019178,2]
[330367465,1719336652665,-500.0,0.00019178,2]
[330367466,1719336652674,-715.02,0.00019178,2]
[330367467,1719336652684,-500.0,0.00019178,2]
[330367468,1719336652693,-766.33,0.00019178,2]
[330367469,1719336652703,-1124.57293657,0.00019178,2]
[330367470,1719336652718,-409.17503043,0.00019178,2]
[330367471,1719336652800,-1750.08934919,0.00019178,2]
[330367472,1719336652812,-746.60009089,0.00019178,2]
[330367473,1719336652824,-443.07349567,0.00019178,2]
[330367474,1719336652835,-4372.05909725,0.00019178,2]
[330367475,1719336652845,-500.0,0.00019178,2]
[330367476,1719336652855,-614.22,0.00019178,2]
[330367477,1719336652863,-809.04,0.00019178,2]
[330367478,1719336652873,-500.0,0.00019178,2]
[330367479,1719336652882,-1237.48,0.00019178,2]
[330367480,1719336652892,-500.0,0.00019178,2]
[330367481,1719336652901,-1087.7,0.00019178,2]
[330367482,1719336652913,-609.44,0.00019178,2]
[330367483,1719336652923,-13666.55,0.00019178,2]
[330367484,1719336652933,-500.0,0.00019178,2]
[330367485,1719336652945,-8034.41,0.00019178,2]
[330367486,1719336652955,-500.0,0.00019178,2]
[330367487,1719336652964,-500.0,0.00019178,2]
[330367488,1719336652974,-500.0,0.00019178,2]
[330367489,1719336652986,-500.0,0.00019178,2]
[330367490,1719336652995,-2660.61,0.00019178,2]
[330367491,1719336653005,-571.91986246,0.00019178,2]
[330367492,1719336653014,-502.09,0.00019178,2]
[330367493,1719336653024,-500.0,0.00019178,2]
[330367494,1719336653034,-500.0,0.00019178,2]
[330367495,1719336653044,-500.0,0.00019178,2]
[330367496,1719336653054,-3790.3,0.00019178,2]
[330367497,1719336653063,-661.93,0.00019178,2]
[330367498,1719336653072,-640.72,0.00019178,2]
[330367499,1719336653082,-2009.55,0.00019178,2]
[330367500,1719336653091,-500.0,0.00019178,2]
[330367501,1719336653100,-500.0,0.00019178,2]
[330367502,1719336653109,-231.98104029,0.00019178,2]
[330367503,1719336653122,-7.99623395,0.00019178,2]
[330367504,1719336653132,-556.89587407,0.00019178,2]
[330367505,1719336653143,-689.41412593,0.00019178,2]
[330367506,1719336653153,-500.0,0.00019178,2]
[330367507,1719336653165,-1508.63,0.00019178,2]
[330367508,1719336653174,-500.0,0.00019178,2]
[330367509,1719336653184,-500.0,0.00019178,2]
[330367510,1719336653192,-5360.66376481,0.00019178,2]
[330367511,1719336653919,-677.15259817,0.00019178,2]
[330367512,1719336653931,-183.64363702,0.00019178,2]
[330367513,1719336653941,-246.44732633,0.00019178,2]
[330367514,1719336653953,-2501.71267367,0.00019178,2]
[330367515,1719336653962,-500.0,0.00019178,2]
[330367516,1719336653971,-500.0,0.00019178,2]
[330367517,1719336653981,-500.0,0.00019178,2]
[330367518,1719336653991,-891.19,0.00019178,2]
[330367519,1719336654001,-1376.94,0.00019178,2]
[330367520,1719336654010,-500.0,0.00019178,2]
[330367521,1719336654020,-2305.94,0.00019178,2]
[330367522,1719336654030,-500.0,0.00019178,2]
[330367523,1719336654040,-500.0,0.00019178,2]
[330367524,1719336654050,-500.0,0.00019178,2]
[330367525,1719336654060,-13928.47,0.00019178,2]
[330367526,1719336654071,-500.0,0.00019178,2]
[330367527,1719336654080,-3299.04,0.00019178,2]
[330367528,1719336654090,-3339.36,0.00019178,2]
[330367529,1719336654100,-730.68,0.00019178,2]
[330367530,1719336654109,-1176.93,0.00019178,2]
[330367531,1719336654119,-500.0,0.00019178,2]
[330367532,1719336654129,-500.0,0.00019178,2]
[330367533,1719336654139,-847.68,0.00019178,2]
[330367534,1719336654149,-681.73,0.00019178,2]
[330367535,1719336654158,-1263.02,0.00019178,2]
[330367536,1719336654168,-500.0,0.00019178,2]
[330367537,1719336654178,-500.0,0.00019178,2]
[330367538,1719336654187,-500.0,0.00019178,2]
[330367539,1719336654198,-500.0,0.00019178,2]
[330367540,1719336654208,-1878.58,0.00019178,2]
[330367541,1719336654218,-503.75079601,0.00019178,2]
[330367542,1719336654227,-1818.73,0.00019178,2]
[330367543,1719336654237,-500.0,0.00019178,2]
[330367544,1719336654247,-500.0,0.00019178,2]
[330367545,1719336654256,-500.0,0.00019178,2]
[330367546,1719336654266,-500.0,0.00019178,2]
[330367547,1719336654276,-500.0,0.00019178,2]
[330367548,1719336654285,-3136.34,0.00019178,2]
[330367549,1719336654295,-500.0,0.00019178,2]
[330367550,1719336654305,-500.0,0.00019178,2]
[330367551,1719336654314,-482.36250904,0.00019178,2]
[330367552,1719336654324,-500.0,0.00019178,2]
[330367553,1719336654334,-500.0,0.00019178,2]
[330367554,1719336654343,-619.92,0.00019178,2]
[330367555,1719336654353,-560.88,0.00019178,2]
[330367556,1719336654363,-2700.67,0.00019178,2]
[330367557,1719336654373,-500.0,0.00019178,2]
[330367558,1719336654383,-988.6,0.00019178,2]
[330367559,1719336654392,-797.55,0.00019178,2]
[330367560,1719336654401,-500.0,0.00019178,2]
[330367561,1719336654411,-500.0,0.00019178,2]
[330367562,1719336654421,-2323.25,0.00019178,2]
[330367563,1719336654430,-500.0,0.00019178,2]
[330367564,1719336654439,-186.50102752,0.00019178,2]
[330367565,1719336654453,-423.59897248,0.00019178,2]
[330367566,1719336654463,-779.98,0.00019178,2]
[330367567,1719336654472,-500.0,0.00019178,2]
[330367568,1719336654483,-700.29,0.00019178,2]
[330367569,1719336654492,-1339.19,0.00019178,2]
[330367570,1719336654503,-600.15,0.00019178,2]
[330367571,1719336654514,-500.0,0.00019178,2]
[330367572,1719336654524,-1226.41,0.00019178,2]
[330367573,1719336654534,-547.62,0.00019178,2]
[330367574,1719336654543,-2859.03,0.00019178,2]
[330367575,1719336654554,-500.0,0.00019178,2]
[330367576,1719336654563,-42086.46,0.00019178,2]
[330367577,1719336654573,-3576.54,0.00019178,2]
[330367578,1719336654584,-735.09,0.00019178,2]
[330367579,1719336654593,-3992.74,0.00019178,2]
[330367580,1719336654603,-552.5,0.00019178,2]
[330367581,1719336654612,-3170.32,0.00019178,2]
[330367582,1719336654622,-500.0,0.00019178,2]
[330367583,1719336654632,-500.0,0.00019178,2]
[330367584,1719336654643,-500.0,0.00019178,2]
[330367585,1719336654653,-500.0,0.00019178,2]
[330367586,1719336654668,-500.0,0.00019178,2]
[330367587,1719336654678,-4051.78,0.00019178,2]
[330367588,1719336654689,-500.0,0.00019178,2]
[330367589,1719336654698,-500.0,0.00019178,2]
[330367590,1719336654713,-500.0,0.00019178,2]
[330367591,1719336654723,-500.0,0.00019178,2]
[330367592,1719336654733,-1475.72,0.00019178,2]
[330367593,1719336654743,-729.73,0.00019178,2]
[330367594,1719336654755,-1010.04,0.00019178,2]
[330367595,1719336654765,-1145.76,0.00019178,2]
[330367596,1719336654775,-835.43,0.00019178,2]
[330367597,1719336654788,-500.0,0.00019178,2]
[330367598,1719336654798,-932.8,0.00019178,2]
[330367599,1719336654808,-500.0,0.00019178,2]
[330367600,1719336654817,-500.0,0.00019178,2]
[330367601,1719336654827,-500.0,0.00019178,2]
[330367602,1719336654836,-2474.27,0.00019178,2]
[330367603,1719336654846,-761.58,0.00019178,2]
[330367604,1719336654856,-500.0,0.00019178,2]
[330367605,1719336654866,-2888.1,0.00019178,2]
[330367606,1719336654876,-500.0,0.00019178,2]
[330367607,1719336654886,-205.2120937,0.00019178,2]
[330367608,1719336654895,-3020.12,0.00019178,2]
[330367609,1719336654905,-500.0,0.00019178,2]
[330367610,1719336654916,-574.90023984,0.00019178,2]
[330367611,1719336654926,-4112.15,0.00019178,2]
[330367612,1719336654935,-1745.89,0.00019178,2]
[330367613,1719336654945,-500.0,0.00019178,2]
[330367614,1719336654955,-618.45,0.00019178,2]
[330367615,1719336654964,-1718.13,0.00019178,2]
[330367616,1719336654974,-1257.51,0.00019178,2]
[330367617,1719336654984,-3801.41,0.00019178,2]
[330367618,1719336654994,-1000.0,0.00019178,2]
[330367619,1719336655004,-1625.44,0.00019178,2]
[330367620,1719336655014,-25425.65869398,0.00019178,2]
[330367621,1719336655029,-500.0,0.00019178,2]
[330367622,1719336655041,-2915.05130602,0.00019178,2]
[330367623,1719336655050,-500.0,0.00019178,2]
[330367624,1719336655060,-470.05268026,0.00019178,2]
[330367625,1719336655081,-8127.95731974,0.00019178,2]
[330367626,1719336655090,-1946.6,0.00019178,2]
[330367627,1719336655100,-643.43,0.00019178,2]
[330367628,1719336655110,-500.0,0.00019178,2]
[330367629,1719336655120,-5001.04,0.00019178,2]
[330367630,1719336655129,-500.0,0.00019178,2]
[330367631,1719336655139,-500.0,0.00019178,2]
[330367632,1719336655149,-500.0,0.00019178,2]
[330367633,1719336655158,-374.51762835,0.00019178,2]
[330367634,1719336655168,-3162.55,0.00019178,2]
[330367635,1719336655178,-2601.43,0.00019178,2]
[330367636,1719336655188,-500.0,0.00019178,2]
[330367637,1719336655197,-500.0,0.00019178,2]
[330367638,1719336655207,-1303.79,0.00019178,2]
[330367639,1719336655216,-500.0,0.00019178,2]
[330367640,1719336655226,-1835.4,0.00019178,2]
[330367641,1719336655236,-647.52,0.00019178,2]
[330367642,1719336655245,-834.74,0.00019178,2]
[330367643,1719336655255,-500.0,0.00019178,2]
[330367644,1719336655264,-500.0,0.00019178,2]
[330367645,1719336655273,-500.0,0.00019178,2]
[330367646,1719336655283,-1297.84,0.00019178,2]
[330367647,1719336655292,-500.0,0.00019178,2]
[330367648,1719336655301,-2153.46,0.00019178,2]
[330367649,1719336655311,-647.35636982,0.00019178,2]
[330367650,1719336655530,-858.44363018,0.00019178,2]
[330367651,1719336655540,-500.0,0.00019178,2]
[330367652,1719336655549,-1667.49,0.00019178,2]
[330367653,1719336655559,-500.0,0.00019178,2]
[330367654,1719336655568,-510.9083588,0.00019178,2]
[330367655,1719336655578,-500.0,0.00019178,2]